bitfinex/quotes_SOLUSD_20241127
["timestamp","ask_amount","ask_price","bid_price","bid_amount"]
[1732738524897,8.03519412,239.61,239.54,62.12305209]
[1732738525919,0.5007206,239.7,239.54,62.12305209]
[1732738526110,8.03519412,239.62,239.54,62.12305209]
[1732738526322,0.5007206,239.7,239.58,8.03519412]
[1732738526499,8.03519412,239.66,239.58,8.03519412]
[1732738526690,0.5007206,239.7,239.58,8.03519412]
[1732738526691,8.03519412,239.64,239.58,61.29049141]
[1732738526895,0.5007206,239.7,239.58,320.03519412]
[1732738527197,8.03519412,239.62,239.58,312.0]
[1732738527419,8.03519412,239.62,239.55,61.29049141]
[1732738528716,15.8581,239.66,239.51,61.29049141]
[1732738528898,8.03519412,239.58,239.49,70.15821716]
[1732738529100,8.03519412,239.58,239.49,62.12302304]
[1732738529403,8.03519412,239.58,239.49,70.15821716]
[1732738529609,32.14077648,239.64,239.49,70.15821716]
[1732738529610,23.776884,239.65,239.49,70.15821716]
[1732738529799,8.03519412,239.58,239.49,70.15821716]
[1732738530217,23.776884,239.6,239.49,70.15821716]
[1732738530520,8.03519412,239.62,239.53,8.03519412]
[1732738530694,8.03519412,239.62,239.54,0.8325605]
[1732738530899,23.776884,239.65,239.55,8.03519412]
[1732738531099,15.8581,239.66,239.57,8.03519412]
[1732738531100,23.89329412,239.66,239.57,8.03519412]
[1732738531405,23.89329412,239.66,239.58,0.83246792]
[1732738531606,15.8581,239.66,239.58,0.83246792]
[1732738531794,15.8581,239.66,239.53,62.12291879]
[1732738531795,8.03519412,239.63,239.53,62.12291879]
[1732738531998,8.03519412,239.61,239.53,62.12291879]
[1732738532202,15.8581,239.66,239.53,0.83242738]
[1732738532394,8.03519412,239.62,239.54,8.03519412]
[1732738532696,8.03519412,239.62,239.55,0.83254651]
[1732738533601,8.03519412,239.62,239.55,312.83254651]
[1732738533818,8.03519412,239.6,239.52,61.29049141]
[1732738534115,8.03519412,239.6,239.53,0.83271466]
[1732738534324,15.8581,239.66,239.54,8.03519412]
[1732738534325,23.776884,239.65,239.54,8.03519412]
[1732738534527,8.03519412,239.63,239.55,0.83253922]
[1732738534825,8.03519412,239.62,239.55,0.83253922]
[1732738535204,15.8581,239.66,239.55,0.83253922]
[1732738535394,8.03519412,239.65,239.56,8.03519412]
[1732738535597,8.03519412,239.65,239.57,0.83247175]
[1732738535824,23.89329412,239.66,239.58,69.32568553]
[1732738536118,8.03519412,239.62,239.59,1.6687289]
[1732738536918,15.8581,239.66,239.55,1.66897178]
[1732738536919,8.03519412,239.6,239.55,1.66897178]
[1732738537094,8.03519412,239.6,239.53,61.29049141]
[1732738537296,8.03519412,239.58,239.53,61.29049141]
[1732738537611,8.03519412,239.6,239.54,0.8326699]
[1732738538499,8.03519412,239.6,239.54,2.50166249]
[1732738538698,8.03519412,239.6,239.54,0.8326699]
[1732738539030,8.03519412,239.6,239.53,62.12310921]
[1732738539395,23.776884,239.65,239.54,8.03519412]
[1732738539605,8.03519412,239.64,239.56,69.32568553]
[1732738539810,15.8581,239.66,239.58,69.32568553]
[1732738540030,15.8581,239.66,239.59,2.50109297]
[1732738540031,23.89329412,239.66,239.59,2.50109297]
[1732738540403,0.5007206,239.7,239.64,0.1061401]
[1732738540927,0.5007206,239.7,239.64,0.93838908]
[1732738541112,0.5007206,239.7,239.66,8.03519412]
[1732738541424,0.5007206,239.7,239.68,8.03519412]
[1732738541638,0.5007206,239.7,239.69,62.12247901]
[1732738541920,0.5007206,239.7,239.65,61.29049141]
[1732738542124,0.5007206,239.7,239.64,0.1061401]
[1732738542308,8.53591472,239.7,239.64,0.1061401]
[1732738542716,8.53591472,239.7,239.64,62.22890837]
[1732738542717,0.5007206,239.7,239.64,62.22890837]
[1732738542919,8.53591472,239.7,239.64,62.22890837]
[1732738543303,0.5007206,239.7,239.64,0.93841696]
[1732738543711,8.03519412,239.67,239.64,0.1061401]
[1732738544029,8.03519412,239.65,239.64,0.1061401]
[1732738544233,0.5007206,239.7,239.64,0.1061401]
[1732738544406,24.2776046,239.7,239.64,0.1061401]
[1732738545227,8.03519412,239.66,239.64,0.1061401]
[1732738545524,8.03519412,239.67,239.64,0.1061401]
[1732738545711,0.5007206,239.7,239.64,0.1061401]
[1732738546118,0.5007206,239.7,239.64,0.93836251]
[1732738546820,8.03519412,239.67,239.64,0.1061401]
[1732738547024,8.03519412,239.65,239.64,0.1061401]
[1732738548032,0.5007206,239.7,239.64,0.1061401]
[1732738548331,12.5268667,239.69,239.64,0.1061401]
[1732738548515,0.5007206,239.7,239.64,0.1061401]
[1732738549027,12.5268667,239.67,239.64,0.1061401]
[1732738550006,12.5268667,239.69,239.64,0.1061401]
[1732738551837,12.5268667,239.67,239.64,0.1061401]
[1732738552211,12.5268667,239.65,239.64,0.1061401]
[1732738553314,0.5007206,239.7,239.64,0.1061401]
[1732738553512,12.5268667,239.65,239.64,0.1061401]
[1732738554110,63.9588174,239.65,239.64,4.01e-05]
[1732738555834,20.0,239.62,239.52,0.83269878]
[1732738556011,12.5268667,239.55,239.52,0.83269878]
[1732738556214,12.5268667,239.57,239.52,0.83269878]
[1732738556724,12.5268667,239.57,239.52,2.50232227]
[1732738556910,23.776884,239.64,239.52,0.83269878]
[1732738557109,12.5268667,239.58,239.52,0.83269878]
[1732738557531,12.5268667,239.58,239.52,2.50209423]
[1732738557722,12.5268667,239.56,239.52,62.12319019]
[1732738557918,12.5268667,239.56,239.51,312.0]
[1732738557919,12.5268667,239.54,239.51,61.29049141]
[1732738558527,36.3037507,239.64,239.49,62.12324447]
[1732738558528,12.5268667,239.52,239.49,62.12324447]
[1732738558730,12.5268667,239.5,239.44,62.12327963]
[1732738559239,12.5268667,239.5,239.45,1.66966955]
[1732738559411,12.5268667,239.5,239.46,2.50255338]
[1732738559607,12.5268667,239.5,239.46,1.66966955]
[1732738559813,12.5268667,239.48,239.46,1.66966955]
[1732738560338,12.5268667,239.48,239.44,1.66966955]
[1732738560539,12.5268667,239.46,239.45,1.66966955]
[1732738561218,12.5268667,239.46,239.45,1.66971036]
[1732738563537,12.5268667,239.46,239.4,62.96020177]
[1732738563741,23.776884,239.51,239.41,1.66971036]
[1732738564021,36.3089,239.44,239.4,1.66985203]
[1732738564234,36.3089,239.44,239.31,62.12362702]
[1732738564433,12.5268667,239.32,239.31,374.12362702]
[1732738564634,12.5268667,239.34,239.31,373.29049141]
[1732738565242,16.3089,239.44,239.31,373.29049141]
[1732738565434,15.5354,239.5,239.34,81.29049141]
[1732738565626,12.5268667,239.4,239.35,0.83313036]
[1732738565946,12.5268667,239.38,239.35,62.12362177]
[1732738567652,12.5268667,239.41,239.35,62.12362177]
[1732738567945,12.5268667,239.47,239.38,93.81735811]
[1732738568134,12.5268667,239.47,239.39,0.83295873]
[1732738568335,12.5268667,239.47,239.41,312.0]
[1732738568533,12.5268667,239.47,239.42,0.83295797]
[1732738571239,16.4478,239.56,239.43,67.84099141]
[1732738571432,16.4478,239.56,239.44,62.12335033]
[1732738571433,12.5268667,239.46,239.44,62.12335033]
[1732738571960,12.5268667,239.49,239.44,62.12335033]
[1732738572829,12.5268667,239.47,239.44,62.12335033]
[1732738573339,12.5268667,239.47,239.44,0.83285892]
[1732738573647,12.5268667,239.45,239.42,0.83292233]
[1732738573845,12.5268667,239.52,239.42,0.83292233]
[1732738573846,12.5268667,239.46,239.42,0.83292233]
[1732738574236,12.5268667,239.46,239.43,312.0]
[1732738574854,12.5268667,239.46,239.44,0.83297079]
[1732738575431,12.5268667,239.46,239.41,0.83290883]
[1732738575653,12.5268667,239.44,239.41,0.83290883]
[1732738576357,12.5268667,239.46,239.41,0.83290883]
[1732738576850,23.776884,239.55,239.41,0.83290883]
[1732738577053,12.5268667,239.46,239.41,0.83290883]
[1732738578042,23.776884,239.55,239.41,0.83290883]
[1732738578253,12.5268667,239.46,239.42,312.0]
[1732738578535,12.5268667,239.46,239.43,0.83287483]
[1732738579638,12.5268667,239.44,239.4,62.1234024]
[1732738579839,12.5268667,239.46,239.4,62.1234024]
[1732738581363,12.5268667,239.48,239.4,62.1234024]
[1732738581538,12.5268667,239.51,239.4,74.6502691]
[1732738581860,12.5268667,239.51,239.45,373.29049141]
[1732738582158,16.4478,239.56,239.45,312.0]
[1732738582351,12.5268667,239.46,239.4,61.29049141]
[1732738582542,12.5268667,239.44,239.41,0.83299464]
[1732738583238,12.5268667,239.42,239.38,0.83306946]
[1732738583444,12.5268667,239.4,239.38,0.83306946]
[1732738583636,12.5268667,239.42,239.34,61.29049141]
[1732738583946,12.5268667,239.42,239.35,0.83305035]
[1732738584974,12.5268667,239.42,239.36,20.0]
[1732738585268,12.5268667,239.42,239.38,312.0]
[1732738585437,12.5268667,239.42,239.39,0.83307796]
[1732738586253,12.5268667,239.4,239.37,62.12356804]
[1732738586643,12.5268667,239.38,239.32,0.83316814]
[1732738586855,15.3046,239.45,239.32,62.12365955]
[1732738587155,12.5268667,239.38,239.32,0.83316814]
[1732738587335,12.5268667,239.38,239.32,62.12365955]
[1732738587533,12.5268667,239.36,239.32,62.12365955]
[1732738587939,15.3046,239.45,239.32,0.83316814]
[1732738588138,12.5268667,239.33,239.3,0.83334326]
[1732738588332,12.5268667,239.33,239.3,62.12383467]
[1732738588531,12.5268667,239.33,239.3,0.83334326]
[1732738588759,12.5268667,239.33,239.32,312.0]
[1732738588957,12.5268667,239.33,239.26,67.31209141]
[1732738589165,12.5268667,239.31,239.27,0.83341378]
[1732738589345,12.5268667,239.31,239.27,62.12390519]
[1732738589960,12.5268667,239.31,239.27,0.83341378]
[1732738590467,12.5268667,239.35,239.27,0.83341378]
[1732738590645,12.5268667,239.37,239.28,12.5268667]
[1732738590840,12.5268667,239.37,239.29,0.83328663]
[1732738591855,12.5268667,239.37,239.33,312.0]
[1732738592170,12.5268667,239.35,239.29,61.29049141]
[1732738592364,12.5268667,239.33,239.3,0.83342066]
[1732738593246,12.5268667,239.35,239.3,0.83342066]
[1732738594145,20.0,239.41,239.3,0.83342066]
[1732738594351,12.5268667,239.38,239.3,13.36028736]
[1732738594642,12.5268667,239.36,239.3,62.12391207]
[1732738595368,12.5268667,239.36,239.32,312.0]
[1732738595670,12.5268667,239.36,239.33,0.83328649]
[1732738595856,15.3046,239.45,239.35,20.0]
[1732738596166,12.5268667,239.41,239.36,0.83313973]
[1732738596873,12.5268667,239.41,239.36,20.83313973]
[1732738597250,12.5268667,239.39,239.36,0.83313973]
[1732738597574,12.5268667,239.37,239.31,0.83322168]
[1732738597869,12.5268667,239.34,239.31,0.83322168]
[1732738598171,12.5268667,239.32,239.27,0.83338641]
[1732738598742,12.5268667,239.32,239.27,312.83338641]
[1732738599054,12.5268667,239.32,239.27,312.0]
[1732738599238,12.5268667,239.32,239.28,0.8334654]
[1732738600545,15.3046,239.45,239.3,12.5268667]
[1732738600769,12.5268667,239.39,239.31,62.1237191]
[1732738601089,12.5268667,239.43,239.35,20.0]
[1732738601241,12.5268667,239.43,239.37,81.29049141]
[1732738601440,12.5268667,239.43,239.38,0.83303282]
[1732738603359,12.5268667,239.43,239.38,62.12352423]
[1732738603572,12.5268667,239.43,239.38,374.12352423]
[1732738603874,12.5268667,239.43,239.38,373.29049141]
[1732738604956,12.5268667,239.43,239.39,0.83302122]
[1732738605464,12.5268667,239.43,239.39,62.12351263]
[1732738605663,12.5268667,239.47,239.39,74.65037933]
[1732738605856,12.5268667,239.47,239.39,62.12351263]
[1732738606178,12.5268667,239.43,239.39,62.12351263]
[1732738608566,12.5268667,239.43,239.41,312.0]
[1732738608776,16.0643,239.56,239.44,20.0]
[1732738608978,12.5268667,239.53,239.45,62.12322668]
[1732738609275,12.5268667,239.51,239.45,62.12322668]
[1732738612164,12.5268667,239.51,239.49,312.0]
[1732738612372,12.5268667,239.53,239.5,0.83272354]
[1732738612544,16.5263,239.62,239.52,81.29049141]
[1732738612748,12.5268667,239.61,239.53,0.83247588]
[1732738613155,0.5268667,239.61,239.53,0.83247588]
[1732738613350,0.5268667,239.61,239.53,13.35934258]
[1732738613956,12.5268667,239.63,239.55,73.81735811]
[1732738614157,12.5268667,239.61,239.56,62.1229071]
[1732738614853,12.5268667,239.63,239.57,1.66872485]
[1732738615053,12.5268667,239.65,239.58,2.50105661]
[1732738615254,12.5268667,239.65,239.59,1.66872485]
[1732738615558,12.5268667,239.63,239.6,0.83230475]
[1732738617257,12.5268667,239.63,239.59,61.29049141]
[1732738617459,15.8877,239.68,239.56,0.83237115]
[1732738617460,12.5268667,239.61,239.56,0.83237115]
[1732738617664,12.5268667,239.58,239.56,0.83237115]
[1732738617863,12.5268667,239.6,239.56,0.83237115]
[1732738618166,12.5268667,239.65,239.57,32.5268667]
[1732738618374,13.0275873,239.7,239.61,12.5268667]
[1732738618570,0.5007206,239.7,239.69,312.0]
[1732738619055,0.5007206,239.7,239.69,61.29049141]
[1732738619255,0.5007206,239.7,239.69,62.12246939]
[1732738621059,0.5007206,239.7,239.69,93.83724764]
[1732738621251,0.5007206,239.7,239.69,88.00526966]
[1732738621970,0.5007206,239.7,239.69,109.55176966]
[1732738622164,0.5007206,239.7,239.69,421.55133935]
[1732738622364,0.5007206,239.7,239.69,416.55133935]
[1732738622767,0.5007206,239.7,239.69,387.48483935]
[1732738627487,0.5007206,239.7,239.69,387.4848893]
[1732738627855,0.5007206,239.7,239.69,374.9580226]
[1732738628756,13.0275873,239.7,239.69,313.66753119]
[1732738629060,13.0275873,239.7,239.69,312.0]
[1732738629674,0.5007206,239.7,239.69,312.0]
[1732738632383,0.5007206,239.7,239.69,313.66789342]
[1732738632963,13.0275873,239.7,239.69,313.66789342]
[1732738633163,0.5007206,239.7,239.69,313.66789342]
[1732738633989,13.0275873,239.7,239.69,1.66790012]
[1732738634166,13.0275873,239.7,239.61,63.79066517]
[1732738634369,12.5268667,239.66,239.61,63.79066517]
[1732738634585,12.5268667,239.68,239.62,1.66790012]
[1732738634871,12.5268667,239.68,239.63,2.50020957]
[1732738635073,12.5268667,239.66,239.64,1.66790012]
[1732738635493,12.5268667,239.66,239.65,1.66790012]
[1732738635669,12.5268667,239.66,239.63,1.66790012]
[1732738635871,12.5268667,239.66,239.64,1.66790012]
[1732738636113,12.5268667,239.66,239.62,0.83230408]
[1732738636114,12.5268667,239.68,239.65,1.66790012]
[1732738636264,12.5268667,239.68,239.66,1.66790012]
[1732738636468,12.5268667,239.68,239.67,1.66790012]
[1732738636667,12.5268667,239.68,239.63,1.66790012]
[1732738636892,12.5268667,239.68,239.64,2.50019224]
[1732738637099,12.5268667,239.68,239.67,312.0]
[1732738637275,12.5268667,239.68,239.67,313.66790012]
[1732738638491,13.0275873,239.7,239.67,313.66790012]
[1732738638792,13.0275873,239.7,239.68,1.66790012]
[1732738639090,13.0275873,239.7,239.69,1.66790012]
[1732738641596,13.0275873,239.7,239.69,313.66790012]
[1732738642995,13.0275873,239.7,239.69,1.66790012]
[1732738645878,13.0275873,239.7,239.69,313.66790012]
[1732738646080,0.5007206,239.7,239.69,313.66790012]
[1732738646381,13.0275873,239.7,239.69,1.66790012]
[1732738649274,13.0275873,239.7,239.69,312.0]
[1732738651507,0.5007206,239.7,239.67,12.5268667]
[1732738651681,16.0428,239.85,239.73,20.0]
[1732738651881,12.5268667,239.83,239.74,73.64843033]
[1732738653382,0.5007206,239.94,239.78,72.81663751]
[1732738653383,16.7189206,239.94,239.78,72.81663751]
[1732738653584,16.7189206,239.94,239.83,20.0]
[1732738653585,12.5268667,239.91,239.83,20.0]
[1732738653784,12.5268667,239.91,239.84,0.83147986]
[1732738654606,16.7189206,239.94,239.85,312.0]
[1732738654793,12.5268667,239.92,239.86,0.83145914]
[1732738656205,12.5268667,239.88,239.83,81.12121232]
[1732738656383,12.5268667,239.84,239.82,80.28977081]
[1732738656588,12.5268667,239.84,239.82,60.28977081]
[1732738656994,12.5268667,239.84,239.75,61.12147348]
[1732738657206,12.5268667,239.84,239.76,72.81663751]
[1732738657403,12.5268667,239.86,239.78,12.5268667]
[1732738657712,12.5268667,239.86,239.81,20.0]
[1732738658008,12.5268667,239.86,239.82,0.83158297]
[1732738658396,12.5268667,239.88,239.82,0.83158297]
[1732738661115,12.5268667,239.88,239.85,312.0]
[1732738662483,16.7189206,239.94,239.85,312.0]
[1732738662484,12.5268667,239.9,239.85,312.0]
[1732738662690,12.5268667,239.92,239.86,0.83147823]
[1732738663212,12.5268667,239.92,239.86,61.12124904]
[1732738664499,12.5268667,239.92,239.87,1.66686021]
[1732738664705,12.5268667,239.9,239.88,1.66686021]
[1732738665013,12.5268667,239.9,239.89,1.66686021]
[1732738665795,12.5268667,239.9,239.89,313.66686021]
[1732738665998,12.5268667,239.9,239.89,1.66686021]
[1732738668404,13.0275873,239.94,239.87,2.49838829]
[1732738668601,13.0275873,239.94,239.88,1.66686021]
[1732738668813,13.0275873,239.94,239.86,1.66686021]
[1732738669116,13.0275873,239.94,239.89,312.0]
[1732738669497,0.5007206,239.94,239.89,12.5268667]
[1732738669711,0.5007206,239.94,239.91,12.5268667]
[1732738669920,0.5007206,239.94,239.92,2.4978881]
[1732738670303,0.5007206,239.94,239.92,1.66662909]
[1732738670508,0.5007206,239.94,239.9,1.66653093]
[1732738670707,0.5007206,239.94,239.87,0.83125919]
[1732738670708,0.5007206,239.94,239.88,1.66653093]
[1732738671206,0.5007206,239.94,239.89,0.83138195]
[1732738672128,0.5007206,239.94,239.87,0.83139389]
[1732738672516,0.5007206,239.94,239.91,312.0]
[1732738674602,0.5007206,239.94,239.92,0.83132273]
[1732738675733,0.5007206,239.94,239.91,0.83126492]
[1732738676317,0.5007206,239.94,239.92,12.5268667]
[1732738676518,0.5007206,239.94,239.93,0.8311672]
[1732738677421,0.5007206,239.94,239.93,61.12093801]
[1732738677737,0.5007206,239.94,239.93,373.12093801]
[1732738677921,0.5007206,239.94,239.93,372.28977081]
[1732738681729,0.5007206,239.94,239.93,1.66596193]
[1732738681924,0.5007206,239.94,239.91,1.66596193]
[1732738682336,12.5268667,239.93,239.91,1.66596193]
[1732738682632,0.5007206,239.94,239.86,72.81663751]
[1732738682846,0.5007206,239.94,239.87,2.49770834]
[1732738683827,12.5268667,239.89,239.87,1.66628954]
[1732738684019,12.5268667,239.89,239.79,61.95606035]
[1732738684339,0.5007206,239.94,239.8,2.49794676]
[1732738684543,12.5268667,239.88,239.81,1.66628954]
[1732738684730,12.5268667,239.88,239.8,0.83165722]
[1732738684731,12.5268667,239.88,239.82,313.66628954]
[1732738684937,12.5268667,239.88,239.83,1.66628954]
[1732738685948,12.5268667,239.9,239.81,12.5268667]
[1732738686247,0.5007206,239.94,239.8,2.49792039]
[1732738686248,12.5268667,239.88,239.82,1.66628954]
[1732738686461,12.5268667,239.88,239.81,1.66628954]
[1732738686625,12.5268667,239.88,239.82,1.66628954]
[1732738686825,12.5268667,239.88,239.83,1.66628954]
[1732738687038,12.5268667,239.88,239.81,1.66628954]
[1732738687227,12.5268667,239.88,239.82,1.66628954]
[1732738687542,12.5268667,239.88,239.83,2.49790572]
[1732738687744,12.5268667,239.9,239.84,1.66628954]
[1732738688043,12.5268667,239.9,239.85,0.83158148]
[1732738688243,12.5268667,239.92,239.85,0.83158148]
[1732738688546,12.5268667,239.92,239.86,1.66628954]
[1732738688755,12.5268667,239.92,239.87,1.66628954]
[1732738689254,12.5268667,239.92,239.88,1.66628954]
[1732738689426,12.5268667,239.92,239.87,1.66628954]
[1732738689621,12.5268667,239.92,239.88,1.66628954]
[1732738689825,12.5268667,239.92,239.87,1.66628954]
[1732738690025,12.5268667,239.92,239.88,1.66628954]
[1732738690354,12.5268667,239.92,239.89,1.66628954]
[1732738690648,0.5007206,239.94,239.9,1.66628954]
[1732738690818,12.5268667,239.91,239.86,312.0]
[1732738691019,0.5007206,239.94,239.86,312.0]
[1732738691020,12.5268667,239.89,239.87,1.66648931]
[1732738691243,0.5007206,239.94,239.88,1.66648931]
[1732738691545,0.5007206,239.94,239.89,1.66648931]
[1732738691751,0.5007206,239.94,239.92,12.5268667]
[1732738691935,0.5007206,239.94,239.93,2.49766898]
[1732738692137,0.12171787,239.94,239.93,2.49766898]
[1732738693231,0.12171787,239.94,239.93,62.78743979]
[1732738694350,0.12171787,239.94,239.93,374.78743979]
[1732738694529,0.12171787,239.94,239.93,373.95626012]
[1732738695036,0.12171787,239.94,239.93,377.07922071]
[1732738696250,0.12171787,239.94,239.93,388.62792071]
[1732738696439,16.3949,240.15,239.99,20.0]
[1732738696642,12.5268667,240.12,240.03,12.5268667]
[1732738696951,0.5007206,240.19,240.0,2.49728861]
[1732738696952,12.5268667,240.16,240.09,12.5268667]
[1732738697249,0.5007206,240.19,240.06,0.83069358]
[1732738697456,12.5268667,240.14,240.06,0.83069358]
[1732738697645,12.5268667,240.16,240.07,12.5268667]
[1732738697953,0.5007206,240.19,240.07,12.5268667]
[1732738697954,12.5268667,240.17,240.08,0.83062939]
[1732738698132,12.5268667,240.16,240.08,0.83062939]
[1732738698932,12.5268667,240.16,240.09,3.12296059]
[1732738699258,13.0275873,240.19,240.11,12.5268667]
[1732738699463,13.0275873,240.19,240.12,1.66477148]
[1732738699754,13.0275873,240.19,240.13,1.66477148]
[1732738699924,13.0275873,240.19,240.14,1.66477148]
[1732738700129,13.0275873,240.19,240.15,1.66477148]
[1732738700330,0.5007206,240.19,240.16,1.66477148]
[1732738700550,20.0,240.18,240.17,1.66477148]
[1732738700948,20.0,240.18,240.12,12.5268667]
[1732738702643,0.5007206,240.19,240.12,12.5268667]
[1732738702955,0.5007206,240.19,240.16,12.5268667]
[1732738703732,0.5007206,240.19,240.18,12.5268667]
[1732738706648,0.5007206,240.19,240.18,324.5268667]
[1732738706832,0.5007206,240.19,240.18,312.0]
[1732738707231,0.5007206,240.19,240.18,324.5268667]
[1732738708858,0.5007206,240.19,240.18,348.3037507]
[1732738716061,10.83121071,240.28,240.19,23.776884]
[1732738716258,10.83121071,240.28,240.19,24.60720161]
[1732738717060,10.83121071,240.28,240.2,12.5268667]
[1732738718451,12.5268667,240.26,240.19,24.60720161]
[1732738719553,16.1165,240.34,240.2,12.5268667]
[1732738719759,12.5268667,240.31,240.22,12.5268667]
[1732738720349,12.5268667,240.29,240.21,0.83030916]
[1732738721769,12.5268667,240.29,240.22,12.5268667]
[1732738722066,32.5268667,240.31,240.22,12.5268667]
[1732738722662,32.5268667,240.31,240.24,312.0]
[1732738724369,20.0,240.31,240.24,324.5268667]
[1732738726471,20.0,240.31,240.24,12.5268667]
[1732738726868,32.5268667,240.31,240.24,23.776884]
[1732738727055,32.5268667,240.31,240.24,36.3037507]
[1732738727372,32.5268667,240.31,240.22,12.5268667]
[1732738727560,32.5268667,240.31,240.23,23.776884]
[1732738728383,27.97630463,240.31,240.23,7.97630463]
[1732738729372,27.97630463,240.31,240.24,312.0]
[1732738729873,20.0,240.31,240.23,7.97630463]
[1732738730080,20.0,240.31,240.24,23.776884]
[1732738732058,7.97630463,240.3,240.24,23.776884]
[1732738732969,20.0,240.31,240.25,23.776884]
[1732738733484,7.97630463,240.3,240.24,23.776884]
[1732738733783,27.97630463,240.31,240.24,23.776884]
[1732738734763,21.7478,240.42,240.29,7.97630463]
[1732738734979,7.97630463,240.36,240.27,7.97630463]
[1732738735169,7.97630463,240.34,240.26,23.776884]
[1732738736378,7.97630463,240.34,240.29,312.0]
[1732738736862,7.97630463,240.34,240.26,23.776884]
[1732738737065,7.97630463,240.3,240.22,60.25992073]
[1732738737264,27.97630463,240.33,240.23,0.83021806]
[1732738737474,27.97630463,240.33,240.24,7.97630463]
[1732738737988,7.97630463,240.31,240.22,68.23622536]
[1732738738388,7.97630463,240.31,240.23,23.776884]
[1732738738887,20.0,240.33,240.24,7.97630463]
[1732738739089,27.97630463,240.33,240.24,7.97630463]
[1732738739961,27.97630463,240.33,240.26,312.0]
[1732738740283,20.0,240.33,240.27,23.776884]
[1732738740478,16.04858346,240.33,240.27,23.776884]
[1732738741082,16.04858346,240.33,240.22,7.97630463]
[1732738741083,7.97630463,240.31,240.22,7.97630463]
[1732738741768,24.02488809,240.33,240.24,7.97630463]
[1732738743372,24.02488809,240.33,240.25,312.0]
[1732738743871,7.97630463,240.31,240.25,312.0]
[1732738744068,7.97630463,240.27,240.25,312.0]
[1732738744398,7.97630463,240.27,240.2,23.776884]
[1732738745785,7.97630463,240.27,240.16,6.5493]
[1732738745786,15.0467,240.26,240.16,20.0]
[1732738746090,7.97630463,240.25,240.17,0.83041803]
[1732738746263,7.97630463,240.25,240.15,8.80674847]
[1732738746685,7.97630463,240.25,240.15,0.83044384]
[1732738746874,7.97630463,240.23,240.15,0.83044384]
[1732738747068,7.97630463,240.23,240.16,23.776884]
[1732738747480,7.97630463,240.23,240.2,312.0]
[1732738747682,7.97630463,240.25,240.2,312.0]
[1732738748086,7.97630463,240.25,240.16,31.75318863]
[1732738748392,7.97630463,240.25,240.18,23.776884]
[1732738748595,15.0467,240.26,240.2,7.97630463]
[1732738748765,15.0467,240.26,240.2,23.776884]
[1732738748970,23.02300463,240.26,240.2,23.776884]
[1732738749811,7.97630463,240.24,240.17,23.776884]
[1732738751294,7.97630463,240.24,240.23,312.0]
[1732738753289,23.02300463,240.26,240.23,312.0]
[1732738754894,7.97630463,240.24,240.1,73.11464846]
[1732738755090,7.97630463,240.18,240.1,69.06682123]
[1732738755291,7.97630463,240.18,240.1,61.0905166]
[1732738756072,7.97630463,240.16,240.07,69.06685428]
[1732738757491,6.2621,240.22,240.09,7.97630463]
[1732738757795,6.2621,240.22,240.03,6.4925]
[1732738757796,7.97630463,240.19,240.17,312.0]
[1732738758599,7.97630463,240.21,240.17,312.0]
[1732738758889,7.97630463,240.21,240.13,7.97630463]
[1732738759091,7.97630463,240.21,240.12,23.776884]
[1732738759395,7.97630463,240.21,240.13,7.97630463]
[1732738759580,7.97630463,240.21,240.14,0.83052119]
[1732738759892,20.0,240.23,240.14,0.83052119]
[1732738760095,7.97630463,240.21,240.14,0.83052119]
[1732738760300,7.97630463,240.25,240.15,31.75318863]
[1732738760597,7.97630463,240.25,240.17,23.776884]
[1732738760801,7.97630463,240.23,240.17,23.776884]
[1732738761295,7.97630463,240.23,240.16,23.776884]
[1732738761498,21.1673,240.26,240.15,24.60732742]
[1732738761808,7.97630463,240.22,240.15,24.60732742]
[1732738762104,7.97630463,240.22,240.2,312.0]
[1732738762901,7.97630463,240.22,240.15,31.75318863]
[1732738763072,7.97630463,240.22,240.15,32.5836547]
[1732738764194,7.97630463,240.22,240.15,31.75318863]
[1732738764783,21.1673,240.26,240.16,0.83049397]
[1732738764985,23.02300463,240.26,240.17,31.75318863]
[1732738765302,15.0467,240.26,240.19,31.75318863]
[1732738765502,15.0467,240.26,240.21,23.776884]
[1732738765877,7.97630463,240.32,240.25,312.0]
[1732738766097,7.97630463,240.32,240.26,0.83012266]
[1732738767201,7.97630463,240.32,240.24,0.83011203]
[1732738767403,15.9867,240.33,240.24,0.83011203]
[1732738767583,7.97630463,240.32,240.24,0.83011203]
[1732738769406,15.9867,240.33,240.29,312.0]
[1732738771082,24.2776046,240.43,240.27,7.97630463]
[1732738771287,7.97630463,240.37,240.29,7.97630463]
[1732738771494,7.97630463,240.37,240.3,0.82993403]
[1732738771905,7.97630463,240.35,240.28,23.776884]
[1732738772101,7.97630463,240.35,240.29,0.829957]
[1732738773191,20.0,240.41,240.29,69.06618236]
[1732738773514,7.97630463,240.35,240.27,20.0]
[1732738774012,7.97630463,240.35,240.31,312.0]